bitfinex-derivatives/quotes_ETHF0:USTF0_20250824
["timestamp","ask_amount","ask_price","bid_price","bid_amount"]
[1755994675881,0.93510554,4784.5,4784.4,0.2289]
[1755994680486,0.93510554,4784.5,4784.4,0.4497]
[1755994683489,0.93510554,4784.5,4784.4,0.2289]
[1755994683788,0.41818,4784.1,4784.0,0.2208]
[1755994683975,0.41819,4784.0,4783.8,0.3274]
[1755994684284,18.978,4784.1,4783.6,3.2078]
[1755994684285,18.978,4784.1,4783.6,3.4396]
[1755994684479,0.41821,4783.8,4783.7,0.2318]
[1755994684680,0.93124656,4783.8,4783.7,0.2318]
[1755994686084,0.93124656,4783.8,4783.7,0.385]
[1755994686288,0.93124656,4783.8,4783.7,0.9354]
[1755994687083,0.93124656,4783.8,4783.7,1.1533]
[1755994687285,19.49103656,4783.8,4783.7,1.3091]
[1755994688587,18.978,4783.8,4783.7,1.3091]
[1755994688986,18.978,4783.8,4783.7,5.3091]
[1755994689495,18.978,4783.8,4783.7,8.5169]
[1755994691400,18.978,4783.8,4783.7,4.5169]
[1755994693391,18.978,4783.8,4783.7,0.9817]
[1755994693699,18.978,4783.8,4783.4,0.3274]
[1755994693700,19.49112853,4783.8,4783.5,0.2318]
[1755994693993,0.51312853,4783.7,4783.5,0.2318]
[1755994694188,0.93133853,4783.7,4783.5,0.2318]
[1755994694388,0.51312853,4783.6,4783.5,0.2318]
[1755994696296,0.51312853,4783.6,4783.4,0.2318]
[1755994696590,18.978,4783.8,4783.4,0.2318]
[1755994696591,0.93135853,4783.5,4783.4,0.2318]
[1755994697394,0.41824,4783.3,4783.2,3.4396]
[1755994697593,19.91136853,4783.3,4783.2,3.4396]
[1755994697796,19.91136853,4783.3,4783.2,0.2318]
[1755994698993,19.49312853,4783.3,4783.2,0.2318]
[1755994700605,19.49312853,4783.3,4783.2,0.4548]
[1755994700903,19.49312853,4783.3,4783.2,1.72735]
[1755994701498,18.98,4783.3,4783.2,1.99143704]
[1755994702202,19.91190434,4783.3,4783.2,0.9817]
[1755994702496,19.91190434,4783.3,4783.2,0.2318]
[1755994702803,19.91190434,4783.3,4783.2,0.608]
[1755994703001,19.91190434,4783.3,4783.2,1.3091]
[1755994703401,19.91190434,4783.3,4783.2,0.9817]
[1755994703900,19.91190434,4783.3,4783.2,1.3091]
[1755994704704,19.49366434,4783.3,4783.2,1.72735]
[1755994704908,19.49366434,4783.3,4783.2,1.3091]
[1755994706199,19.49366434,4783.3,4783.2,1.57326571]
[1755994706799,19.49366434,4783.3,4783.2,1.3091]
[1755994707502,19.49366434,4783.3,4783.2,0.9817]
[1755994707799,19.49366434,4783.3,4783.2,1.72735]
[1755994708005,19.49366434,4783.3,4783.2,1.99153417]
[1755994708200,18.98,4783.3,4783.2,1.99153417]
[1755994708601,18.98,4783.3,4783.2,5.19933417]
[1755994708796,18.98,4783.3,4783.2,9.22023417]
[1755994709002,18.3768,4783.3,4783.2,9.19933417]
[1755994709399,19.3464,4783.3,4783.2,0.71898417]
[1755994709708,19.86020239,4783.3,4783.2,0.26418417]
[1755994710595,0.1485,4782.9,4782.8,0.1532]
[1755994710800,19.9526,4782.9,4782.8,0.309]
[1755994711002,19.9526,4782.9,4782.8,1.05469]
[1755994711204,19.9526,4782.9,4782.8,0.41829]
[1755994712804,19.9526,4782.9,4782.8,0.87309]
[1755994713509,19.9526,4782.9,4782.8,0.4548]
[1755994713710,19.9526,4782.9,4782.8,0.41829]
[1755994713905,0.582,4782.8,4782.7,3.2078]
[1755994714109,0.971,4782.8,4782.7,3.2078]
[1755994714614,0.971,4782.8,4782.7,3.653]
[1755994714803,0.971,4782.8,4782.7,3.9582]
[1755994715107,0.971,4782.8,4782.7,4.312]
[1755994715710,0.971,4782.8,4782.7,3.9582]
[1755994715904,19.3394,4782.9,4782.8,0.94159]
[1755994716108,19.3394,4782.9,4782.8,1.74059]
[1755994717211,19.7284,4782.9,4782.8,1.74059]
[1755994717506,19.954,4782.9,4782.8,0.41829]
[1755994718412,20.37228,4782.9,4782.7,3.2078]
[1755994718712,0.971,4782.8,4782.7,3.653]
[1755994719413,0.971,4782.8,4782.7,3.2078]
[1755994719912,0.971,4782.8,4782.7,3.653]
[1755994720311,1.48507154,4782.8,4782.7,3.2078]
[1755994722005,0.16,4782.4,4782.3,0.799]
[1755994722207,20.37232,4782.4,4782.3,0.799]
[1755994722512,19.954,4782.4,4782.3,1.3223]
[1755994722903,19.7284,4782.4,4782.3,1.3223]
[1755994723720,20.4686969,4782.4,4782.3,0.5975]
[1755994724109,20.4686969,4782.4,4782.3,1.3223]
[1755994727816,0.41833,4782.3,4782.2,3.2078]
[1755994728013,1.9040269,4782.3,4782.2,3.4315]
[1755994728214,1.9040269,4782.3,4782.2,4.312]
[1755994728418,1.4856969,4782.3,4782.2,4.5301]
[1755994731116,1.1000969,4782.3,4782.2,4.5301]
[1755994731320,1.2600969,4782.3,4782.2,4.5301]
[1755994731719,0.971,4782.0,4781.9,0.4452]
[1755994732019,19.956,4782.0,4781.9,0.4452]
[1755994733524,19.956,4782.0,4781.7,3.5616]
[1755994733525,1.03297,4781.8,4781.7,3.2078]
[1755994733729,1.90313972,4781.8,4781.7,3.2078]
[1755994734021,1.90313972,4781.8,4781.7,3.653]
[1755994734619,1.09576972,4781.8,4781.2,0.4452]
[1755994734923,0.6146,4781.2,4781.1,3.2078]
[1755994735118,20.46976972,4781.2,4781.1,3.2078]
[1755994735311,19.956,4781.2,4781.1,3.2078]
[1755994739922,0.7454,4781.2,4781.1,4.3086]
[1755994740122,19.7324,4781.2,4781.1,4.5301]
[1755994740624,19.376,4781.2,4781.1,4.5301]
[1755994740819,3.2078,4782.0,4781.4,0.5233]
[1755994741015,0.971,4781.6,4781.5,1.7407]
[1755994741222,20.47586344,4781.6,4781.5,0.4452]
[1755994741419,19.89386344,4781.6,4781.4,0.4184]
[1755994741622,1.16382,4781.3,4781.1,3.2078]
[1755994741829,19.972,4781.2,4781.1,3.2078]
[1755994743019,19.80843,4781.2,4780.8,0.57075]
[1755994743219,0.389,4781.0,4780.9,0.4452]
[1755994743428,0.971,4781.0,4780.9,0.4452]
[1755994743628,0.5797,4780.8,4780.7,0.4536]
[1755994743929,19.9725,4780.8,4780.7,0.4536]
[1755994747421,0.3772,4780.4,4780.3,0.8847]
[1755994747623,0.7364,4780.3,4780.2,1.30321]
[1755994748031,0.7364,4780.3,4780.2,1.75681]
[1755994748721,19.0,4780.4,4780.3,1.3383]
[1755994748922,1.02972,4781.3,4781.2,0.3]
[1755994749233,19.89331994,4781.3,4781.2,1.3383]
[1755994749629,20.25251994,4781.3,4781.2,1.3383]
[1755994749829,19.89331994,4781.3,4781.2,1.3383]
[1755994750526,20.25251994,4781.3,4781.2,1.3383]
[1755994751131,20.25251994,4781.3,4780.6,3.2078]
[1755994751132,19.51611994,4781.3,4780.7,0.2255]
[1755994751330,0.3772,4780.4,4780.3,0.5065]
[1755994751529,0.1567,4780.2,4780.1,0.41851]
[1755994751726,0.1567,4780.2,4779.5,1.04643]
[1755994751727,0.5933,4780.1,4779.9,0.77684]
[1755994751932,0.9705,4780.1,4780.0,0.7536]
[1755994752236,19.9785,4780.1,4780.0,0.4536]
[1755994752538,0.5933,4780.0,4779.9,0.4536]
[1755994752732,19.008,4780.1,4779.8,0.41854]
[1755994752733,0.9705,4779.9,4779.8,0.41854]
[1755994753036,0.9705,4779.9,4779.8,1.75684]
[1755994753226,0.7364,4779.9,4779.8,1.75684]
[1755994753746,0.9705,4779.7,4779.6,0.4536]
[1755994753933,19.9795,4779.7,4779.6,0.4536]
[1755994757438,19.9795,4779.7,4779.6,0.6018]
[1755994757734,19.9795,4779.7,4779.6,1.3383]
[1755994757940,19.7454,4779.7,4779.6,1.3383]
[1755994759032,19.73778572,4779.7,4779.6,1.3383]
[1755994760239,19.97178572,4779.7,4779.6,1.3383]
[1755994760541,0.9704,4779.6,4779.5,3.2078]
[1755994762441,0.9704,4779.6,4779.5,3.9614]
[1755994762835,0.9704,4779.6,4779.5,4.5461]
[1755994763033,0.9704,4779.6,4779.5,3.2078]
[1755994763436,1.48234564,4779.6,4779.5,3.2078]
[1755994763735,0.9704,4779.3,4779.2,1.3383]
[1755994763934,19.9714,4779.3,4779.2,1.3383]
[1755994764135,19.9714,4779.3,4779.2,0.7536]
[1755994764344,19.9714,4779.3,4779.2,0.6054]
[1755994765242,0.3772,4779.1,4779.0,3.2078]
[1755994765440,0.9704,4779.1,4779.0,3.2078]
[1755994765739,0.9704,4779.1,4779.0,3.6614]
[1755994765946,0.7364,4779.1,4779.0,4.5461]
[1755994767345,0.7364,4779.1,4779.0,1.3383]
[1755994771551,0.9705,4779.1,4779.0,1.3383]
[1755994772047,0.9705,4779.1,4779.0,0.6054]
[1755994772252,0.9705,4779.1,4778.7,0.4536]
[1755994772253,0.3783,4778.8,4778.7,0.4536]
[1755994772454,19.9726,4778.8,4778.7,0.4536]
[1755994772953,20.39123,4778.8,4778.7,0.4536]
[1755994773850,0.80255,4778.6,4778.5,3.2078]
[1755994774151,1.8969262,4778.6,4778.5,3.2078]
[1755994774347,1.38519,4778.2,4778.1,1.3195]
[1755994774547,20.38819,4778.2,4778.1,1.3195]
[1755994775042,20.38819,4778.2,4778.1,0.4484]
[1755994776553,0.9665,4778.0,4777.9,3.6562]
[1755994777146,0.9665,4778.0,4777.9,4.5273]
[1755994777348,0.7335,4778.0,4777.9,4.5273]
[1755994778052,0.7335,4778.0,4777.9,4.1952]
[1755994778053,0.9665,4778.0,4777.9,4.1952]
[1755994778656,0.9665,4778.0,4777.9,4.5273]
[1755994779155,0.7335,4778.0,4777.9,4.5273]
[1755994781752,19.003,4778.2,4778.1,0.7583]
[1755994782053,19.003,4778.2,4778.1,1.3404]
[1755994782257,3.2078,4779.1,4779.0,0.7805]
[1755994782446,22.73362659,4779.1,4779.0,1.3195]
[1755994783155,22.89232659,4779.1,4779.0,1.3195]
[1755994783451,23.24192659,4779.1,4779.0,1.3195]
[1755994783653,3.71962659,4779.1,4779.0,1.3195]
[1755994783848,19.52882659,4779.1,4779.0,1.3195]
[1755994784248,19.017,4779.1,4779.0,1.3195]
[1755994787054,4.3598,4780.3,4780.2,1.3195]
[1755994787355,23.88898011,4780.3,4780.2,1.3195]
[1755994787859,23.47048011,4780.3,4780.2,1.3195]
[1755994788057,23.70348011,4780.3,4780.2,1.3195]
[1755994788962,23.12088011,4780.3,4780.2,1.3195]
[1755994789164,22.2248,4780.3,4780.2,1.3195]
[1755994789460,0.7335,4781.1,4781.0,1.3195]
[1755994789652,20.51666165,4781.1,4781.0,1.0828]
[1755994790060,20.51666165,4781.1,4781.0,0.7507]
[1755994790253,20.51666165,4781.1,4781.0,1.3195]
[1755994790657,20.28366165,4781.1,4781.0,1.3195]
[1755994790855,19.7715,4781.1,4781.0,1.3195]
[1755994791059,3.2078,4781.7,4779.3,21.0936791]
[1755994791060,0.3839,4781.7,4781.6,1.3195]
[1755994791262,19.7985,4781.7,4781.6,1.3195]
[1755994792050,0.7335,4781.7,4781.6,1.3195]
[1755994792255,19.8025,4781.7,4781.6,1.3195]
[1755994793159,20.0355,4781.7,4781.6,1.3195]
[1755994793767,20.45388,4781.7,4781.6,0.7507]
[1755994793959,20.45388,4781.7,4781.6,0.4484]
[1755994795265,0.9665,4781.5,4781.4,3.2078]
[1755994795462,0.3839,4780.9,4780.8,3.8041]
[1755994795659,20.0275,4780.9,4780.8,3.8041]
[1755994796065,20.0275,4780.9,4780.8,4.5273]
[1755994796364,19.7945,4780.9,4780.8,4.5273]
[1755994797266,0.7335,4781.4,4781.3,0.539]
[1755994797466,19.7925,4781.4,4781.3,1.3195]
[1755994799866,20.0255,4781.4,4781.3,1.3195]
[1755994800264,0.7335,4780.9,4780.8,4.49736]
[1755994800572,20.0265,4780.9,4780.8,3.7468]
[1755994800772,20.0265,4780.9,4780.8,4.1952]
[1755994800968,20.0265,4780.9,4780.8,4.5273]
[1755994801472,20.0265,4780.9,4780.8,4.1952]
[1755994801673,20.0265,4780.9,4780.8,3.9585]
[1755994804670,20.0278,4780.9,4780.8,3.2078]
[1755994806171,20.0278,4780.9,4780.8,3.4449]
[1755994806368,20.0278,4780.9,4780.8,4.5811]
[1755994806567,19.7948,4780.9,4780.8,4.5811]
[1755994807878,19.7935,4780.9,4780.8,4.5811]
[1755994808076,0.718,4781.3,4781.2,0.97663]
[1755994808276,19.7713,4781.3,4781.2,1.79173]
[1755994809072,20.0019,4781.3,4781.2,1.0284]
[1755994809377,20.0019,4781.3,4781.2,0.6301]
[1755994809578,20.0019,4781.3,4781.2,0.4702]
[1755994810377,20.0019,4781.3,4781.2,0.7888]
[1755994810673,20.0019,4781.3,4781.2,1.0284]
[1755994811677,19.7673,4781.3,4781.2,1.3733]
[1755994812179,19.9979,4781.3,4781.2,0.4702]
[1755994812378,0.3924,4780.9,4780.8,4.1109]
[1755994812676,19.7663,4780.9,4780.8,4.37934958]
[1755994812870,19.9969,4780.9,4780.8,4.03444958]
[1755994813071,19.9969,4780.9,4780.8,3.47624958]
[1755994813274,19.9969,4780.9,4780.8,3.2078]
[1755994814281,19.9969,4780.9,4780.8,3.47645381]
[1755994814679,19.9969,4780.9,4780.8,3.2078]
[1755994814879,19.9969,4780.9,4780.8,3.47660108]
[1755994815382,0.718,4780.9,4780.8,4.84990108]
[1755994815678,3.2078,4781.8,4780.8,4.84990108]
[1755994815679,0.2306,4781.7,4780.8,4.54366108]
[1755994815875,0.718,4781.7,4781.6,1.3733]
[1755994816080,20.28674518,4781.7,4781.6,1.3733]
[1755994817289,20.28674518,4781.7,4781.6,1.64256946]
[1755994817581,19.055,4781.7,4781.6,1.3733]
[1755994817882,19.055,4781.7,4781.6,1.6490017]
[1755994818279,0.3911,4782.3,4782.2,1.79164]
[1755994818581,20.28658564,4782.3,4782.2,2.0673417]
[1755994820680,20.28528564,4782.3,4782.2,2.06720832]
[1755994820881,20.28658564,4782.3,4782.2,2.06720832]
[1755994821480,20.51718564,4782.3,4782.2,2.06720832]
[1755994822881,19.7733,4782.3,4782.2,2.06720832]
[1755994823187,19.054,4782.3,4782.2,2.06720832]
[1755994823875,0.718,4782.8,4782.7,0.9765]
[1755994824187,19.765,4782.8,4782.7,2.06716832]
[1755994824484,19.4381,4782.8,4782.7,2.06716832]
[1755994824683,30.3716,4783.6,4783.3,0.41823]
[1755994824885,0.3911,4783.4,4783.3,1.79153]
[1755994825088,1.23055365,4783.4,4783.3,2.06671744]
[1755994825288,1.23055365,4783.4,4783.3,1.79153]
[1755994825491,1.23185365,4783.4,4783.3,1.79153]
[1755994826493,0.9499,4782.9,4782.8,3.2078]
[1755994826685,19.9999,4782.9,4782.8,3.95294759]
[1755994827390,19.9999,4782.9,4782.8,4.27154759]
[1755994827591,19.9999,4782.9,4782.8,4.2362]
[1755994827790,19.9999,4782.9,4782.8,4.51107746]
[1755994828090,19.9999,4782.9,4782.8,4.11277746]
[1755994828489,19.9999,4782.9,4782.8,3.8379]
[1755994828692,20.0007,4782.9,4782.8,4.11272294]
[1755994829600,20.0007,4782.9,4782.8,4.27142294]
[1755994831898,0.7202,4783.3,4783.2,0.5582]
[1755994832103,20.27185696,4783.3,4783.2,1.3733]
[1755994832998,20.50245696,4783.3,4783.2,0.4702]
[1755994834601,20.50245696,4783.3,4783.2,1.0135]
[1755994834799,20.50245696,4783.3,4783.2,1.3538]
[1755994835000,20.27185696,4783.3,4783.2,1.3538]
[1755994835604,19.7594,4783.3,4783.2,1.3538]
[1755994836197,19.7594,4783.3,4783.2,1.62850422]
[1755994836607,19.989,4783.3,4783.2,1.62850422]
[1755994837507,19.989,4783.3,4783.2,1.62851754]
[1755994838012,19.7594,4783.3,4783.2,1.62851754]
[1755994838209,0.7362,4783.7,4783.6,0.5233]
[1755994838503,0.7362,4783.7,4783.6,2.00853754]
[1755994838504,19.413,4783.7,4783.6,2.00853754]
[1755994839012,19.033,4783.7,4783.6,2.00853754]
[1755994839310,0.7362,4784.1,4784.0,1.73378]
[1755994839511,20.0018,4784.1,4784.0,1.73378]
[1755994840512,20.0018,4784.1,4784.0,0.2239]
[1755994840707,19.83418,4784.1,4783.8,0.4182]
[1755994840912,0.6096,4783.9,4783.8,0.4182]
[1755994841114,0.9658,4783.9,4783.8,0.69282709]
[1755994841910,0.9658,4783.9,4783.8,0.91672709]
[1755994842212,0.9658,4783.9,4783.8,1.14482709]
[1755994842413,0.9658,4783.9,4783.8,1.44342709]
[1755994843316,0.9658,4783.9,4783.8,2.00842709]
[1755994843914,0.7362,4783.9,4783.8,2.00842709]
[1755994847215,0.7362,4783.9,4783.8,1.7338]
[1755994847414,0.7362,4783.9,4783.8,2.01522789]
[1755994847816,0.9658,4783.9,4783.8,1.7338]
[1755994848015,0.9658,4783.9,4783.8,2.01521652]
[1755994850721,0.9658,4783.9,4783.8,1.45021652]
[1755994850918,0.9658,4783.9,4783.8,0.69961652]
[1755994851216,1.47899582,4783.9,4783.8,0.28141652]
[1755994851414,4.68679582,4783.9,4783.8,0.28141652]
[1755994851620,8.68679582,4783.9,4783.8,0.28141652]
[1755994851817,8.68679582,4783.9,4783.8,0.04791652]
[1755994852116,0.5342,4782.9,4782.8,3.9584]
[1755994852323,19.5542,4782.9,4782.8,3.6598]
[1755994852523,19.5542,4782.9,4782.8,3.4317]
[1755994852819,20.06741917,4782.9,4782.8,3.4317]
[1755994853517,20.06741917,4782.9,4782.8,3.6598]
[1755994853724,20.06741917,4782.9,4782.8,3.8057]
[1755994857629,20.06741917,4782.9,4782.8,3.6598]
[1755994859023,20.06741917,4782.9,4782.8,3.4317]
[1755994860416,19.5542,4782.9,4782.8,4.5234]
[1755994860620,20.06755924,4782.9,4782.8,4.5234]
[1755994860821,20.06755924,4782.9,4782.8,4.1831]
[1755994861025,20.06755924,4782.9,4782.8,3.9584]
[1755994861326,0.95251,4782.5,4782.3,3.2078]
[1755994861520,19.5532,4782.4,4782.3,3.2078]
[1755994861919,19.5532,4782.4,4781.8,3.2078]
[1755994861920,20.5780457,4782.4,4781.8,3.2078]
[1755994862120,0.5132157,4782.3,4781.8,3.2078]
[1755994862315,0.5132157,4782.2,4781.8,3.2078]
[1755994862526,0.41837,4781.9,4781.8,3.2078]
[1755994862721,19.44137,4781.9,4781.8,3.2078]
[1755994863024,19.44137,4781.9,4781.8,3.4317]
[1755994863824,19.023,4781.9,4781.8,3.6683]
[1755994866324,19.023,4781.9,4781.8,3.4317]
[1755994871430,19.0241,4781.9,4781.8,3.2078]
[1755994871826,19.0241,4781.9,4781.8,3.4368]
[1755994872627,19.0241,4781.9,4781.8,3.2078]
[1755994872832,0.41949,4781.6,4781.5,0.229]
[1755994873133,3.2078,4782.8,4782.4,0.523]
[1755994873333,0.41941,4782.5,4782.4,0.294]
[1755994873631,19.014,4782.7,4782.1,0.8607]
[1755994873632,0.41834,4782.2,4782.1,0.8607]
[1755994873827,0.41834,4782.2,4781.4,0.9867]
[1755994873828,0.0011,4781.5,4781.4,0.9867]
[1755994874029,19.0321,4781.5,4781.4,0.9867]
[1755994874529,19.0321,4781.5,4781.4,1.3263]
[1755994874722,0.0011,4780.4,4780.1,0.3819]
[1755994874929,0.0011,4780.2,4780.1,1.0973]
[1755994875129,19.0721,4780.2,4780.1,1.0973]
[1755994875330,19.0721,4780.2,4780.1,1.3263]
[1755994877435,19.0721,4780.2,4780.1,0.9867]
[1755994877629,0.0011,4780.2,4780.1,0.9867]
[1755994877826,19.0741,4780.2,4780.1,0.9867]
[1755994878028,0.41955,4780.9,4780.8,0.5211]
[1755994878235,19.49255,4780.9,4780.8,0.5211]
[1755994878624,19.49255,4780.9,4780.8,1.3263]
[1755994880225,0.0011,4780.9,4780.8,1.3263]
[1755994880430,19.0831,4780.9,4780.8,1.3263]
[1755994880632,0.41844,4781.1,4781.0,0.5211]
[1755994880936,19.49754,4781.1,4781.0,1.3263]
[1755994881939,19.49754,4781.1,4781.0,0.9867]
[1755994882435,30.133,4781.5,4781.4,1.16851]
[1755994882641,49.207,4781.5,4781.4,1.74471]
[1755994883039,30.133,4781.5,4781.4,1.74471]
[1755994883235,49.208,4781.5,4781.4,4.95251]
[1755994883938,0.0011,4782.3,4782.2,1.3263]
[1755994884140,19.1061,4782.3,4782.2,1.3263]
[1755994884342,19.61817035,4782.3,4782.2,1.3263]
[1755994889949,19.61817035,4782.3,4782.2,0.9867]
[1755994892550,0.001,4782.9,4782.8,1.50798]
[1755994892741,19.087,4782.9,4782.8,1.74458]
[1755994893439,3.2078,4783.2,4783.1,0.5211]
[1755994893746,30.137,4783.3,4783.2,1.75635]
[1755994893943,49.233,4783.3,4783.2,2.02884755]
[1755994894144,49.233,4783.3,4783.2,1.75635]
[1755994894544,49.233,4783.3,4783.2,2.02871323]
[1755994895444,49.233,4783.3,4783.2,1.75635]
[1755994902555,0.41945,4783.2,4783.1,3.2078]
[1755994902743,0.0012,4782.8,4782.7,0.2197]
[1755994903051,0.0012,4782.2,4782.1,3.2078]
[1755994903240,19.0762,4782.2,4782.1,3.2078]
[1755994903643,19.0762,4782.2,4781.5,0.2197]
[1755994903644,0.0012,4781.6,4781.4,3.2078]
[1755994903945,19.0932,4781.5,4781.4,3.2078]
[1755994904245,19.0952,4781.5,4781.4,3.48815438]
[1755994904549,0.0012,4781.5,4781.4,4.82625438]
[1755994904845,19.0972,4781.5,4781.4,4.82625438]
[1755994905347,19.0972,4781.5,4781.4,4.82631648]
[1755994905952,19.0972,4781.5,4781.4,4.82634727]
[1755994907555,19.0972,4781.5,4781.4,4.48814727]
[1755994908751,19.0972,4781.5,4781.4,4.82634727]
[1755994908949,0.0012,4782.3,4782.2,0.63804]
[1755994909152,19.0892,4782.3,4782.2,1.75644]
[1755994909344,19.088,4782.3,4782.2,2.03722482]
[1755994909544,3.209,4782.8,4782.7,0.962]
[1755994909850,22.306,4782.8,4782.7,2.03718482]
[1755994910048,19.0982,4782.8,4782.7,2.03718482]
[1755994910446,19.0982,4782.8,4782.7,5.24498482]
[1755994912451,19.0952,4782.8,4782.7,5.24530561]
[1755994913655,19.0952,4782.8,4782.7,3.70860561]
[1755994913952,19.0952,4782.8,4782.7,0.50080561]
[1755994915148,19.0952,4782.8,4782.5,0.41831]
[1755994915548,19.0952,4782.8,4782.6,0.2197]
[1755994915743,19.0952,4782.8,4782.5,0.41831]
[1755994915952,19.0952,4782.8,4782.5,0.63801]
[1755994916452,0.0012,4782.6,4782.5,0.63801]
[1755994917155,0.3093,4782.3,4782.2,0.5437]
[1755994917355,19.3973,4782.3,4782.2,0.5437]
[1755994917657,19.6333,4782.3,4782.2,1.30024]
[1755994918058,1.18349,4782.8,4782.7,0.8146]
[1755994918254,19.8512,4782.8,4782.7,1.3002]
[1755994918856,19.8512,4782.8,4782.7,0.962]
[1755994919352,19.8512,4782.8,4782.7,1.1817]
[1755994920358,0.5453,4782.8,4782.7,1.7564]
[1755994920549,19.3933,4782.8,4782.7,1.7564]
[1755994920947,0.3861,4783.1,4783.0,0.57887]
[1755994921257,19.2341,4783.1,4783.0,1.75637]
[1755994921451,19.3933,4783.1,4783.0,2.0175151]
[1755994921646,19.6293,4783.1,4783.0,2.0175151]
[1755994922652,19.3933,4783.1,4783.0,2.0175151]
[1755994923160,19.6293,4783.1,4783.0,2.0175151]
[1755994924163,19.8493,4783.1,4783.0,0.2611815]
[1755994925253,0.7653,4783.1,4783.0,0.2611815]
[1755994925454,19.8463,4783.1,4783.0,0.2611815]
[1755994925857,19.6293,4783.1,4783.0,1.6036815]
[1755994926459,0.5453,4783.1,4783.0,1.6036815]
[1755994926767,30.137,4783.3,4783.2,1.3425]
[1755994926957,49.4441,4783.3,4783.2,4.8114815]
[1755994927359,0.5265,4783.8,4783.7,1.76071]
[1755994927561,19.3904,4783.8,4783.7,5.2296915]
[1755994928060,0.3702,4784.2,4784.1,0.41818]
[1755994928357,19.6145,4784.2,4784.1,2.0218615]
[1755994928756,19.8345,4784.2,4784.1,2.0218615]
[1755994929163,19.8345,4784.2,4784.1,1.6788615]
[1755994930562,19.8345,4784.2,4784.1,2.0218615]
[1755994931258,19.8345,4784.2,4784.1,1.76068]
[1755994931961,0.5265,4784.2,4784.1,1.76068]
[1755994932168,0.5265,4784.6,4784.5,0.94864]
[1755994932367,19.6055,4784.6,4784.5,1.76064]
[1755994933069,19.8255,4784.6,4784.5,1.76064]
[1755994935267,19.8225,4784.6,4784.5,1.76064]
[1755994935762,0.41816,4784.3,4784.2,3.2078]
[1755994935966,19.8215,4784.3,4784.2,3.2078]
[1755994936972,19.8215,4784.3,4784.2,3.4471]
[1755994937967,19.8215,4784.3,4784.2,3.2078]
[1755994939772,19.8215,4784.3,4784.2,3.4471]
[1755994940969,0.7465,4784.3,4784.2,3.4471]
[1755994941275,19.8155,4784.3,4784.2,4.391]
[1755994941476,19.8155,4784.3,4784.2,4.048]
[1755994941975,0.7465,4784.3,4784.2,4.5503]
[1755994942276,19.8135,4784.3,4784.2,4.5503]
[1755994942973,0.5265,4784.3,4784.2,4.5503]
[1755994943174,19.062,4784.3,4784.2,3.62597]
[1755994943374,19.062,4784.3,4784.2,4.15647]
[1755994943872,19.062,4784.3,4784.2,4.96847]
[1755994945078,19.2101,4784.3,4784.2,4.96847]
[1755994945877,19.3674,4784.3,4784.2,4.96847]
[1755994946077,19.5895,4784.3,4784.2,4.96847]
[1755994947174,0.5265,4784.3,4784.2,4.96847]
[1755994947374,19.5885,4784.3,4784.2,4.96847]
[1755994949483,19.8084,4784.3,4784.2,4.96847]
[1755994954580,0.3093,4783.8,4783.7,0.2292]
[1755994954881,19.8069,4783.8,4783.7,1.93245191]
[1755994955284,19.588,4783.8,4783.7,1.93245191]
[1755994958584,19.8079,4783.8,4783.7,1.93245191]
[1755994959088,19.8079,4783.8,4783.7,1.75121]
[1755994959291,19.8079,4783.8,4783.7,1.9328242]
[1755994959792,19.8079,4783.8,4783.7,1.93282362]
[1755994960292,19.588,4783.8,4783.7,1.93282362]
[1755994961293,19.8079,4783.8,4783.7,1.93282362]
[1755994962696,19.8079,4783.8,4783.7,0.18161362]
[1755994963392,0.0613,4783.6,4783.5,3.2078]
[1755994963688,0.99990519,4783.6,4783.5,3.1695]
[1755994963889,0.41826,4783.1,4783.0,3.2078]
[1755994964085,19.46126,4783.1,4783.0,3.2078]
[1755994964888,0.4183,4782.7,4782.5,0.65671]
[1755994965090,19.042,4782.6,4782.5,0.65671]
[1755994965291,19.042,4782.6,4782.5,0.2384]
[1755994965685,19.042,4782.6,4782.4,3.62612]
[1755994965686,19.46031,4782.6,4782.4,3.2078]
[1755994966887,19.46031,4782.6,4781.8,0.65677]
[1755994966888,0.41836,4782.1,4781.8,0.65677]
[1755994967085,19.045,4782.0,4781.9,0.2384]
[1755994970899,19.46337,4782.0,4781.7,3.2078]
[1755994971287,19.46337,4782.0,4781.7,3.62618]
[1755994971491,0.41837,4781.9,4781.7,3.4462]
[1755994971800,19.045,4782.0,4781.8,0.41837]
[1755994972596,19.045,4782.0,4781.9,0.2384]
[1755994979607,19.045,4782.0,4781.8,0.41837]
[1755994980795,19.045,4782.0,4781.9,0.2384]
[1755994981210,19.045,4782.0,4781.9,1.333]
[1755994981398,3.2078,4782.9,4782.1,0.4782]
[1755994981600,19.035,4782.8,4782.3,0.2384]
[1755994981907,3.62609,4782.9,4782.8,0.65669]
[1755994982112,22.66009,4782.9,4782.8,0.65669]
[1755994982803,30.121,4783.0,4782.9,1.333]
[1755994983005,49.157,4783.0,4782.9,1.333]
[1755994983901,19.036,4783.0,4782.9,1.333]
[1755994990003,30.129,4784.4,4784.1,0.41817]
[1755994990004,0.41816,4784.3,4784.1,0.41817]
[1755994990200,19.55463489,4784.2,4784.1,0.41817]
[1755994991005,19.55163489,4784.2,4784.1,0.41817]
[1755994991601,19.55163489,4784.2,4784.1,0.65357]
[1755994991809,30.129,4784.4,4784.3,0.65356]
[1755994992009,49.68195052,4784.4,4784.3,0.87706]
[1755994992209,49.68217908,4784.4,4784.3,0.87706]
[1755994992609,49.172,4784.4,4784.3,0.87706]